fUSD/lending_fUSD_20250911
["ID","MTS","AMOUNT","RATE_DAILY","PERIOD"]
[384919760,1757627440281,-2221.87,0.00027397,7]
[384919762,1757627440291,-400.0,0.00027397,7]
[384919764,1757627440305,-400.0,0.00027397,7]
[384919766,1757627440315,-764.53,0.00027397,7]
[384919769,1757627440325,-400.0,0.00027397,7]
[384919771,1757627440335,-400.0,0.00027397,7]
[384919773,1757627440344,-400.0,0.00027397,7]
[384919775,1757627440354,-893.59,0.00027397,7]
[384919777,1757627440365,-616.29,0.00027397,7]
[384919779,1757627440374,-497.07,0.00027397,7]
[384919781,1757627440384,-2494.05,0.00027397,7]
[384919783,1757627440394,-406.91970992,0.00027397,7]
[384919785,1757627440403,-1961.97,0.00027397,7]
[384919787,1757627440413,-400.0,0.00027397,7]
[384919789,1757627440423,-715.83,0.00027397,7]
[384919791,1757627440432,-400.0,0.00027397,7]
[384919793,1757627440442,-400.0,0.00027397,7]
[384919795,1757627440452,-400.0,0.00027397,7]
[384919797,1757627440461,-400.0,0.00027397,7]
[384919799,1757627440470,-2400.41,0.00027397,7]
[384919801,1757627440480,-400.0,0.00027397,7]
[384919803,1757627440489,-400.0,0.00027397,7]
[384919804,1757627440499,-400.0,0.00027397,7]
[384919805,1757627440508,-400.0,0.00027397,7]
[384919806,1757627440518,-400.0,0.00027397,7]
[384919807,1757627440527,-400.0,0.00027397,7]
[384919808,1757627440537,-400.0,0.00027397,7]
[384919809,1757627440546,-1350.64,0.00027397,7]
[384919810,1757627440556,-400.0,0.00027397,7]
[384919811,1757627440566,-400.0,0.00027397,7]
[384919812,1757627440575,-400.0,0.00027397,7]
[384919813,1757627440585,-1152.15,0.00027397,7]
[384919814,1757627440594,-400.0,0.00027397,7]
[384919815,1757627440606,-1942.36,0.00027397,7]
[384919816,1757627440617,-400.0,0.00027397,7]
[384919817,1757627440628,-500.0,0.00027397,7]
[384919818,1757627440639,-400.0,0.00027397,7]
[384919819,1757627440650,-500.0,0.00027397,7]
[384919820,1757627440661,-151.0,0.00027397,7]
[384919821,1757627440671,-500.0,0.00027397,7]
[384919822,1757627440680,-500.0,0.00027397,7]
[384919823,1757627440690,-400.0,0.00027397,7]
[384919825,1757627440700,-1745.53,0.00027397,7]
[384919827,1757627440709,-400.0,0.00027397,7]
[384919829,1757627440719,-400.0,0.00027397,7]
[384919831,1757627440731,-400.0,0.00027397,7]
[384919833,1757627440740,-2239.53,0.00027397,7]
[384919835,1757627440750,-1304.87,0.00027397,7]
[384919837,1757627440760,-901.15,0.00027397,7]
[384919839,1757627440770,-151.0,0.00027397,7]
[384919841,1757627440779,-400.0,0.00027397,7]
[384919843,1757627440789,-400.0,0.00027397,7]
[384919845,1757627440798,-1080.41,0.00027397,7]
[384919847,1757627440807,-151.0,0.00027397,7]
[384919849,1757627440817,-400.0,0.00027397,7]
[384919851,1757627440826,-1587.86,0.00027397,7]
[384919853,1757627440836,-400.0,0.00027397,7]
[384919855,1757627440845,-400.0,0.00027397,7]
[384919857,1757627440855,-772.24,0.00027397,7]
[384919859,1757627440864,-151.0,0.00027397,7]
[384919861,1757627440873,-1535.99,0.00027397,7]
[384919863,1757627440883,-400.0,0.00027397,7]
[384919866,1757627440892,-151.0,0.00027397,7]
[384919868,1757627440901,-151.0,0.00027397,7]
[384919870,1757627440911,-400.0,0.00027397,7]
[384919872,1757627440921,-151.0,0.00027397,7]
[384919874,1757627440931,-151.0,0.00027397,7]
[384919876,1757627440941,-151.0,0.00027397,7]
[384919878,1757627440951,-400.0,0.00027397,7]
[384919880,1757627440960,-400.0,0.00027397,7]
[384919882,1757627440970,-151.0,0.00027397,7]
[384919884,1757627440979,-1709.93,0.00027397,7]
[384919886,1757627440989,-151.0,0.00027397,7]
[384919888,1757627440999,-400.0,0.00027397,7]
[384919890,1757627441009,-681.33,0.00027397,7]
[384919892,1757627441018,-153.288039,0.00027397,7]
[384919894,1757627441027,-827.79,0.00027397,7]
[384919896,1757627441037,-1405.7,0.00027397,7]
[384919898,1757627441046,-1894.71,0.00027397,7]
[384919900,1757627441056,-151.0,0.00027397,7]
[384919902,1757627441066,-1305.44,0.00027397,7]
[384919904,1757627441075,-670.2,0.00027397,7]
[384919906,1757627441085,-400.0,0.00027397,7]
[384919908,1757627441095,-2336.96,0.00027397,7]
[384919910,1757627441104,-151.0,0.00027397,7]
[384919912,1757627441114,-400.0,0.00027397,7]
[384919914,1757627441124,-400.0,0.00027397,7]
[384919916,1757627441134,-663.76,0.00027397,7]
[384919919,1757627441143,-1721.31,0.00027397,7]
[384919921,1757627441153,-400.0,0.00027397,7]
[384919923,1757627441163,-400.0,0.00027397,7]
[384919925,1757627441173,-400.0,0.00027397,7]
[384919927,1757627441182,-2672.17,0.00027397,7]
[384919929,1757627441192,-1652.48,0.00027397,7]
[384919931,1757627441203,-400.0,0.00027397,7]
[384919933,1757627441212,-1555.35,0.00027397,7]
[384919935,1757627441223,-400.0,0.00027397,7]
[384919937,1757627441233,-400.0,0.00027397,7]
[384919939,1757627441242,-400.0,0.00027397,7]
[384919941,1757627441252,-400.0,0.00027397,7]
[384919943,1757627441262,-400.0,0.00027397,7]
[384919945,1757627441272,-400.0,0.00027397,7]
[384919947,1757627441281,-400.0,0.00027397,7]
[384919949,1757627441291,-1705.56,0.00027397,7]
[384919952,1757627441304,-400.0,0.00027397,7]
[384919954,1757627441313,-400.0,0.00027397,7]
[384919956,1757627441323,-400.0,0.00027397,7]
[384919958,1757627441332,-400.0,0.00027397,7]
[384919960,1757627441341,-400.0,0.00027397,7]
[384919962,1757627441350,-900.41,0.00027397,7]
[384919964,1757627441360,-2590.6503329,0.00027397,7]
[384919966,1757627441370,-897.52,0.00027397,7]
[384919968,1757627441379,-1924.73,0.00027397,7]
[384919970,1757627441389,-400.0,0.00027397,7]
[384919972,1757627441401,-2115.38,0.00027397,7]
[384919974,1757627441411,-400.0,0.00027397,7]
[384919976,1757627441420,-2279.93,0.00027397,7]
[384919978,1757627441430,-151.0,0.00027397,7]
[384919980,1757627441439,-400.0,0.00027397,7]
[384919982,1757627441449,-151.0,0.00027397,7]
[384919984,1757627441458,-400.0,0.00027397,7]
[384919986,1757627441468,-400.0,0.00027397,7]
[384919988,1757627441477,-164.248344,0.00027397,7]
[384919990,1757627441487,-622.31,0.00027397,7]
[384919992,1757627441497,-401.77044731,0.00027397,7]
[384919995,1757627441506,-1153.84,0.00027397,7]
[384919997,1757627441515,-400.0,0.00027397,7]
[384919999,1757627441525,-519.0,0.00027397,7]
[384920001,1757627441534,-400.0,0.00027397,7]
[384920003,1757627441544,-1849.34,0.00027397,7]
[384920005,1757627441553,-400.0,0.00027397,7]
[384920007,1757627441562,-1244.32,0.00027397,7]
[384920009,1757627441571,-418.22,0.00027397,7]
[384920011,1757627441582,-1903.92,0.00027397,7]
[384920013,1757627441591,-926.52,0.00027397,7]
[384920015,1757627441601,-2054.75,0.00027397,7]
[384920017,1757627441610,-2269.52,0.00027397,7]
[384920019,1757627441619,-891.18,0.00027397,7]
[384920021,1757627441628,-151.0,0.00027397,7]
[384920023,1757627441638,-1816.52,0.00027397,7]
[384920025,1757627441647,-774.47,0.00027397,7]
[384920027,1757627441657,-151.0,0.00027397,7]
[384920029,1757627441666,-400.0,0.00027397,7]
[384920031,1757627441675,-151.0,0.00027397,7]
[384920033,1757627441685,-400.0,0.00027397,7]
[384920035,1757627441695,-1861.78,0.00027397,7]
[384920037,1757627441704,-1516.31,0.00027397,7]
[384920039,1757627441713,-1776.85,0.00027397,7]
[384920041,1757627441722,-400.0,0.00027397,7]
[384920043,1757627441731,-400.0,0.00027397,7]
[384920045,1757627441741,-400.0,0.00027397,7]
[384920047,1757627441750,-400.0,0.00027397,7]
[384920049,1757627441759,-400.0,0.00027397,7]
[384920051,1757627441769,-400.0,0.00027397,7]
[384920053,1757627441779,-777.81,0.00027397,7]
[384920056,1757627441788,-151.0,0.00027397,7]
[384920058,1757627441797,-946.01,0.00027397,7]
[384920060,1757627441807,-1366.26,0.00027397,7]
[384920062,1757627441817,-400.0,0.00027397,7]
[384920064,1757627441827,-2170.93,0.00027397,7]
[384920066,1757627441836,-400.0,0.00027397,7]
[384920068,1757627441846,-619.87,0.00027397,7]
[384920070,1757627441856,-544.78,0.00027397,7]
[384920072,1757627441865,-400.0,0.00027397,7]
[384920074,1757627441875,-400.0,0.00027397,7]
[384920076,1757627441884,-400.0,0.00027397,7]
[384920078,1757627441894,-400.0,0.00027397,7]
[384920080,1757627441903,-2122.23,0.00027397,7]
[384920082,1757627441912,-400.0,0.00027397,7]
[384920084,1757627441922,-1168.45,0.00027397,7]
[384920086,1757627441931,-928.76,0.00027397,7]
[384920099,1757627442040,-1186.62,0.00027397,7]
[384920101,1757627442050,-1039.0,0.00027397,7]
[384920102,1757627442059,-400.0,0.00027397,7]
[384920103,1757627442068,-1372.99,0.00027397,7]
[384920104,1757627442078,-400.0,0.00027397,7]
[384920105,1757627442088,-525.55,0.00027397,7]
[384920106,1757627442098,-400.0,0.00027397,7]
[384920107,1757627442108,-1647.59,0.00027397,7]
[384920108,1757627442118,-400.0,0.00027397,7]
[384920109,1757627442127,-400.0,0.00027397,7]
[384920110,1757627442136,-400.0,0.00027397,7]
[384920111,1757627442145,-730.82,0.00027397,7]
[384920113,1757627442155,-451.69,0.00027397,7]
[384920115,1757627442164,-1488.12,0.00027397,7]
[384920117,1757627442173,-400.0,0.00027397,7]
[384920119,1757627442183,-400.0,0.00027397,7]
[384920121,1757627442192,-2407.69,0.00027397,7]
[384920123,1757627442201,-400.0,0.00027397,7]
[384920125,1757627442210,-400.0,0.00027397,7]
[384920127,1757627442219,-1661.64,0.00027397,7]
[384920129,1757627442228,-400.0,0.00027397,7]
[384920131,1757627442238,-400.0,0.00027397,7]
[384920133,1757627442247,-400.0,0.00027397,7]
[384920135,1757627442256,-1847.44,0.00027397,7]
[384920137,1757627442266,-812.44,0.00027397,7]
[384920139,1757627442275,-500.0,0.00027397,7]
[384920141,1757627442285,-500.0,0.00027397,7]
[384920143,1757627442295,-500.0,0.00027397,7]
[384920145,1757627442308,-500.0,0.00027397,7]
[384920147,1757627442317,-500.0,0.00027397,7]
[384920149,1757627442327,-400.0,0.00027397,7]
[384920151,1757627442338,-2974.72,0.00027397,7]
[384920153,1757627442348,-2154.39,0.00027397,7]
[384920155,1757627442357,-151.0,0.00027397,7]
[384920157,1757627442368,-400.0,0.00027397,7]
[384920159,1757627442379,-400.0,0.00027397,7]
[384920161,1757627442390,-400.0,0.00027397,7]
[384920163,1757627442399,-400.0,0.00027397,7]
[384920165,1757627442408,-2409.57,0.00027397,7]
[384920167,1757627442418,-400.0,0.00027397,7]
[384920169,1757627442427,-400.0,0.00027397,7]
[384920171,1757627442436,-1505.1,0.00027397,7]
[384920173,1757627442446,-826.95,0.00027397,7]
[384920175,1757627442455,-2357.19,0.00027397,7]
[384920177,1757627442465,-415.59,0.00027397,7]
[384920179,1757627442474,-400.0,0.00027397,7]
[384920181,1757627442483,-500.0,0.00027397,7]
[384920183,1757627442493,-500.0,0.00027397,7]
[384920185,1757627442505,-500.0,0.00027397,7]
[384920188,1757627442515,-400.0,0.00027397,7]
[384920190,1757627442524,-400.0,0.00027397,7]
[384920192,1757627442533,-400.0,0.00027397,7]
[384920194,1757627442543,-1209.2,0.00027397,7]
[384920196,1757627442552,-1222.72,0.00027397,7]
[384920198,1757627442561,-467.93,0.00027397,7]
[384920200,1757627442570,-2029.82,0.00027397,7]
[384920202,1757627442580,-2376.92,0.00027397,7]
[384920204,1757627442590,-1576.35,0.00027397,7]
[384920206,1757627442599,-400.0,0.00027397,7]
[384920208,1757627442608,-400.0,0.00027397,7]
[384920210,1757627442618,-619.65,0.00027397,7]
[384920212,1757627442627,-404.40640876,0.00027397,7]
[384920214,1757627442636,-374.64830694,0.00027397,7]
[384920216,1757627442645,-400.0,0.00027397,7]
[384920218,1757627442654,-831.1,0.00027397,7]
[384920220,1757627442663,-151.0,0.00027397,7]
[384920222,1757627442672,-2286.96,0.00027397,7]
[384920224,1757627442681,-400.0,0.00027397,7]
[384920226,1757627442690,-151.0,0.00027397,7]
[384920228,1757627442699,-683.59,0.00027397,7]
[384920230,1757627442708,-500.0,0.00027397,7]
[384920232,1757627442718,-663.74,0.00027397,7]
[384920234,1757627442727,-500.0,0.00027397,7]
[384920236,1757627442736,-500.0,0.00027397,7]
[384920238,1757627442745,-500.0,0.00027397,7]
[384920240,1757627442755,-500.0,0.00027397,7]
[384920242,1757627442764,-400.0,0.00027397,7]
[384920244,1757627442773,-500.0,0.00027397,7]
[384920246,1757627442783,-500.0,0.00027397,7]
[384920248,1757627442792,-500.0,0.00027397,7]
[384920250,1757627442802,-400.0,0.00027397,7]
[384920252,1757627442811,-500.0,0.00027397,7]
[384920254,1757627442821,-500.0,0.00027397,7]
[384920256,1757627442830,-517.61,0.00027397,7]
[384920258,1757627442840,-753.25,0.00027397,7]
[384920260,1757627442850,-2533.56,0.00027397,7]
[384920262,1757627442859,-400.0,0.00027397,7]
[384920264,1757627442868,-1527.86,0.00027397,7]
[384920266,1757627442877,-400.0,0.00027397,7]
[384920268,1757627442886,-400.0,0.00027397,7]
[384920270,1757627442895,-400.0,0.00027397,7]
[384920272,1757627442904,-400.0,0.00027397,7]
[384920274,1757627442914,-400.0,0.00027397,7]
[384920276,1757627442923,-213.23169289,0.00027397,7]
[384920278,1757627442934,-1146.83,0.00027397,7]
[384920280,1757627442943,-400.0,0.00027397,7]
[384920282,1757627442952,-400.0,0.00027397,7]
[384920284,1757627442961,-500.0,0.00027397,7]
[384920286,1757627442971,-1894.11,0.00027397,7]
[384920288,1757627442981,-400.0,0.00027397,7]
[384920290,1757627442990,-487.19,0.00027397,7]
[384920292,1757627443000,-167.172064,0.00027397,7]
[384920294,1757627443009,-151.0,0.00027397,7]
[384920296,1757627443019,-151.0,0.00027397,7]
[384920299,1757627443028,-1816.71,0.00027397,7]
[384920302,1757627443038,-621.23,0.00027397,7]
[384920306,1757627443047,-151.0,0.00027397,7]
[384920308,1757627443056,-165.4697,0.00027397,7]
[384920310,1757627443065,-636.93,0.00027397,7]
[384920312,1757627443075,-400.0,0.00027397,7]
[384920315,1757627443084,-597.77,0.00027397,7]
[384920317,1757627443093,-1978.38,0.00027397,7]
[384920319,1757627443102,-400.0,0.00027397,7]
[384920321,1757627443111,-400.0,0.00027397,7]
[384920323,1757627443120,-402.00654716,0.00027397,7]
[384920325,1757627443129,-804.92,0.00027397,7]
[384920327,1757627443139,-1032.8,0.00027397,7]
[384920329,1757627443148,-400.0,0.00027397,7]
[384920331,1757627443157,-400.0,0.00027397,7]
[384920333,1757627443166,-2188.58,0.00027397,7]
[384920335,1757627443175,-1200.87,0.00027397,7]
[384920337,1757627443184,-783.81,0.00027397,7]
[384920339,1757627443194,-1046.78,0.00027397,7]
[384920341,1757627443203,-400.0,0.00027397,7]
[384920343,1757627443212,-1611.77,0.00027397,7]
[384920345,1757627443222,-434.23,0.00027397,7]
[384920347,1757627443231,-400.0,0.00027397,7]
[384920349,1757627443241,-400.0,0.00027397,7]
[384920351,1757627443250,-400.0,0.00027397,7]
[384920353,1757627443259,-400.0,0.00027397,7]
[384920355,1757627443269,-151.0,0.00027397,7]
[384920357,1757627443278,-151.0,0.00027397,7]
[384920359,1757627443287,-467.51,0.00027397,7]
[384920361,1757627443298,-2777.49,0.00027397,7]
[384920363,1757627443308,-400.0,0.00027397,7]
[384920365,1757627443317,-151.0,0.00027397,7]
[384920367,1757627443326,-151.0,0.00027397,7]
[384920369,1757627443336,-2380.05,0.00027397,7]
[384920371,1757627443345,-400.0,0.00027397,7]
[384920373,1757627443354,-151.0,0.00027397,7]
[384920375,1757627443364,-151.0,0.00027397,7]
[384920377,1757627443373,-400.0,0.00027397,7]
[384920379,1757627443382,-400.0,0.00027397,7]
[384920381,1757627443391,-400.0,0.00027397,7]
[384920383,1757627443401,-375.80417593,0.00027397,7]
[384920385,1757627443411,-432.14,0.00027397,7]
[384920387,1757627443420,-500.0,0.00027397,7]
[384920389,1757627443429,-936.21,0.00027397,7]
[384920391,1757627443439,-500.0,0.00027397,7]
[384920393,1757627443448,-500.0,0.00027397,7]
[384920395,1757627443457,-400.0,0.00027397,7]
[384920397,1757627443466,-500.0,0.00027397,7]
[384920399,1757627443475,-500.0,0.00027397,7]
[384920401,1757627443484,-612.46,0.00027397,7]
[384920403,1757627443493,-400.0,0.00027397,7]
[384920405,1757627443503,-2415.53,0.00027397,7]
[384920407,1757627443512,-687.63,0.00027397,7]
[384920409,1757627443521,-400.0,0.00027397,7]
[384920411,1757627443531,-400.0,0.00027397,7]
[384920413,1757627443540,-619.53,0.00027397,7]
[384920415,1757627443549,-151.0,0.00027397,7]
[384920417,1757627443558,-243.956779,0.00027397,7]
[384920419,1757627443567,-400.0,0.00027397,7]
[384920421,1757627443577,-502.36,0.00027397,7]
[384920423,1757627443587,-726.74,0.00027397,7]
[384920425,1757627443596,-400.0,0.00027397,7]
[384920427,1757627443606,-708.25,0.00027397,7]
[384920429,1757627443615,-500.0,0.00027397,2]
[384920431,1757627443625,-400.0,0.00027397,7]
[384920433,1757627443634,-500.0,0.00027397,2]
[384920435,1757627443643,-525.18,0.00027397,7]
[384920437,1757627443652,-400.0,0.00027397,7]
[384920439,1757627443662,-2492.29,0.00027397,7]
[384920441,1757627443671,-1811.61,0.00027397,7]
[384920444,1757627443680,-400.0,0.00027397,7]
[384920446,1757627443690,-2450.83,0.00027397,7]
[384920448,1757627443700,-3678.48,0.00027397,7]
[384920450,1757627443709,-451.31,0.00027397,7]
[384920452,1757627443723,-400.0,0.00027397,7]
[384920454,1757627443733,-400.0,0.00027397,7]
[384920456,1757627443742,-400.0,0.00027397,7]
[384920458,1757627443752,-1480.88,0.00027397,7]
[384920460,1757627443762,-400.0,0.00027397,7]
[384920462,1757627443772,-400.0,0.00027397,7]
[384920464,1757627443781,-400.0,0.00027397,7]
[384920467,1757627443791,-400.0,0.00027397,7]
[384920469,1757627443800,-400.0,0.00027397,7]
[384920471,1757627443810,-151.0,0.00027397,7]
[384920473,1757627443820,-151.0,0.00027397,7]
[384920475,1757627443830,-824.46,0.00027397,7]
[384920477,1757627443839,-400.0,0.00027397,7]
[384920479,1757627443848,-151.0,0.00027397,7]
[384920481,1757627443858,-400.0,0.00027397,7]
[384920483,1757627443869,-400.0,0.00027397,7]
[384920485,1757627443878,-400.0,0.00027397,7]
[384920487,1757627443888,-615.43,0.00027397,7]
[384920489,1757627443898,-1733.33,0.00027397,7]
[384920491,1757627443909,-1426.55,0.00027397,7]
[384920493,1757627443919,-400.0,0.00027397,7]
[384920495,1757627443928,-400.0,0.00027397,7]
[384920497,1757627443939,-213.909137,0.00027397,7]
[384920499,1757627443948,-1444.75,0.00027397,7]
[384920501,1757627443958,-656.5,0.00027397,7]
[384920503,1757627443968,-663.82,0.00027397,7]
[384920505,1757627443978,-400.0,0.00027397,7]
[384920507,1757627443988,-1413.55,0.00027397,7]
[384920510,1757627443997,-1859.7,0.00027397,7]
[384920512,1757627444007,-400.0,0.00027397,7]
[384920514,1757627444016,-400.0,0.00027397,7]
[384920516,1757627444025,-400.0,0.00027397,7]
[384920518,1757627444036,-1657.72,0.00027397,7]
[384920520,1757627444045,-400.0,0.00027397,7]
[384920522,1757627444055,-400.0,0.00027397,7]
[384920524,1757627444064,-400.0,0.00027397,7]
[384920526,1757627444073,-1771.5,0.00027397,7]
[384920528,1757627444083,-400.0,0.00027397,7]
[384920530,1757627444093,-1895.65,0.00027397,7]
[384920532,1757627444102,-1281.78,0.00027397,7]
[384920534,1757627444111,-4109.4,0.00027397,7]
[384920536,1757627444121,-3453.06,0.00027397,7]
[384920538,1757627444131,-1064.31,0.00027397,7]
[384920540,1757627444140,-1607.9,0.00027397,7]
[384920542,1757627444149,-400.0,0.00027397,7]
[384920544,1757627444158,-618.96,0.00027397,7]
[384920546,1757627444168,-400.0,0.00027397,7]
[384920548,1757627444178,-400.0,0.00027397,7]
[384920550,1757627444187,-151.0,0.00027397,7]
[384920552,1757627444196,-151.0,0.00027397,7]
[384920554,1757627444206,-555.14,0.00027397,7]
[384920556,1757627444215,-151.0,0.00027397,7]
[384920558,1757627444224,-151.0,0.00027397,7]
[384920560,1757627444234,-400.0,0.00027397,7]
[384920562,1757627444243,-400.0,0.00027397,7]
[384920564,1757627444252,-400.0,0.00027397,7]
[384920566,1757627444262,-400.0,0.00027397,7]
[384920568,1757627444271,-8723.99,0.00027397,7]
[384920570,1757627444280,-151.0,0.00027397,7]
[384920572,1757627444290,-400.0,0.00027397,7]
[384920574,1757627444303,-400.0,0.00027397,7]
[384920576,1757627444312,-151.0,0.00027397,7]
[384920577,1757627444321,-151.0,0.00027397,7]
[384920578,1757627444331,-400.0,0.00027397,7]
[384920579,1757627444340,-151.0,0.00027397,7]
[384920580,1757627444350,-413.57,0.00027397,7]
[384920581,1757627444359,-10846.33,0.00027397,7]
[384920582,1757627444368,-2723.99,0.00027397,7]
[384920583,1757627444378,-400.0,0.00027397,7]
[384920584,1757627444387,-2416.16,0.00027397,7]
[384920585,1757627444397,-400.0,0.00027397,7]
[384920587,1757627444406,-1588.95,0.00027397,7]
[384920588,1757627444417,-1251.69,0.00027397,7]
[384920590,1757627444427,-400.0,0.00027397,7]
[384920592,1757627444437,-400.0,0.00027397,7]
[384920594,1757627444447,-3367.99,0.00027397,7]
[384920596,1757627444456,-571.98,0.00027397,7]
[384920612,1757627444466,-1485.57,0.00027397,7]
[384920616,1757627444624,-400.0,0.00027397,7]
[384920618,1757627444634,-1511.45,0.00027397,7]
[384920620,1757627444644,-580.95,0.00027397,7]
[384920622,1757627444653,-1402.77,0.00027397,7]
[384920624,1757627444663,-407.98354856,0.00027397,7]
[384920626,1757627444672,-400.0,0.00027397,7]
[384920628,1757627444681,-2512.68,0.00027397,7]
[384920630,1757627444691,-151.0,0.00027397,7]
[384920632,1757627444700,-151.0,0.00027397,7]
[384920634,1757627444709,-400.0,0.00027397,7]
[384920636,1757627444719,-151.0,0.00027397,7]
[384920638,1757627444728,-151.0,0.00027397,7]
[384920640,1757627444737,-1100.85,0.00027397,7]
[384920642,1757627444747,-400.0,0.00027397,7]
[384920644,1757627444756,-2129.92,0.00027397,7]
[384920646,1757627444765,-151.0,0.00027397,7]
[384920648,1757627444775,-151.0,0.00027397,7]
[384920650,1757627444784,-1468.07,0.00027397,7]
[384920652,1757627444793,-1235.68,0.00027397,7]
[384920654,1757627444802,-400.0,0.00027397,7]
[384920656,1757627444811,-151.0,0.00027397,7]
[384920658,1757627444821,-151.0,0.00027397,7]
[384920660,1757627444830,-415.26532215,0.00027397,7]
[384920662,1757627444840,-406.26201202,0.00027397,7]
[384920664,1757627444849,-400.0,0.00027397,7]
[384920666,1757627444858,-400.0,0.00027397,7]
[384920668,1757627444867,-400.0,0.00027397,7]
[384920670,1757627444875,-1148.27,0.00027397,7]
[384920672,1757627444885,-659.2,0.00027397,7]
[384920674,1757627444894,-400.0,0.00027397,7]
[384920676,1757627444904,-400.0,0.00027397,7]
[384920678,1757627444913,-677.06,0.00027397,7]
[384920680,1757627444922,-4042.54,0.00027397,7]
[384920682,1757627444933,-400.0,0.00027397,7]
[384920684,1757627444943,-1478.86,0.00027397,7]
[384920686,1757627444952,-596.08,0.00027397,7]
[384920688,1757627444961,-401.23446491,0.00027397,7]
[384920690,1757627444971,-2242.18773653,0.00027397,7]
[384920769,1757627445726,-300.0,0.00027397,7]
[384920770,1757627445737,-579.39226347,0.00027397,7]
[384920771,1757627445747,-582.75338462,0.00027397,7]
[384920772,1757627445758,-500.41260515,0.00027397,7]
[384920773,1757627445798,-244.20401023,0.00027397,7]
[384920774,1757627445809,-2116.65,0.00027397,7]
[384920775,1757627445819,-400.0,0.00027397,7]
[384920776,1757627445828,-400.0,0.00027397,7]
[384920778,1757627445838,-412.03,0.00027397,7]
[384920780,1757627445847,-400.0,0.00027397,7]
[384920782,1757627445857,-400.0,0.00027397,7]
[384920784,1757627445867,-400.0,0.00027397,7]
[384920787,1757627445877,-500.0,0.00027397,7]
[384920789,1757627445886,-1719.45,0.00027397,7]
[384920791,1757627445895,-1710.12,0.00027397,7]
[384920793,1757627445905,-1987.08,0.00027397,7]
[384920795,1757627445914,-400.0,0.00027397,7]
[384920797,1757627445923,-1450.37,0.00027397,7]
[384920801,1757627445933,-400.0,0.00027397,7]
[384920804,1757627445942,-400.0,0.00027397,7]
[384920806,1757627445952,-513.59,0.00027397,7]
[384920808,1757627445961,-1612.89,0.00027397,7]
[384920810,1757627445971,-400.0,0.00027397,7]
[384920811,1757627445981,-400.0,0.00027397,7]
[384920814,1757627445991,-836.01,0.00027397,7]
[384920815,1757627446000,-400.0,0.00027397,7]
[384920818,1757627446011,-400.0,0.00027397,7]
[384920820,1757627446022,-400.0,0.00027397,7]
[384920822,1757627446034,-3415.13,0.00027397,7]
[384920824,1757627446044,-400.0,0.00027397,7]
[384920826,1757627446053,-1717.5,0.00027397,7]
[384920828,1757627446063,-660.1,0.00027397,7]
[384920830,1757627446073,-160.0,0.00027397,14]
[384920832,1757627446083,-400.0,0.00027397,7]
[384920834,1757627446093,-160.0,0.00027397,14]